Workbook

Sheet VISITAS
D2: Celebrando el millón de visitas al blog: Pedro Wave for Excel Guys
F3: AUTOR: | G3: Pedro Wave for Excel Guys
B4: Un millón de visitas | F4: BLOG: | G4: https://pedrowave.blogspot.com | I4: Un millón de visitas
D5: Número de Visita | E5: Fecha de Visita | F5: Fórmula de Búsqueda | G5: Tipo de Búsqueda
D6: 1 | E6: =VLOOKUP(Rango_Valor,Rango_DATOS,2,FALSE) -> 2010-03-10T20:00:00 | F6: =BUSCARV(Rango_Valor;Rango_DATOS;2;FALSO) | G6: Con una función BUSCARV con coincidencia exacta
E7: =IF(VLOOKUP(Rango_Valor,Rango_DATOS_A,1,TRUE)=Rango_Valor, VLOOKUP(Rango_Valor,Rango_DATOS,2,TRUE),NA()) -> 2010-03-10T20:00:00 | F7: =SI(BUSCARV(Rango_Valor;Rango_DATOS_A;1;VERDADERO)=Rango_Valor; BUSCARV(Rango_Valor;Rango_DATOS;2;VERDADERO);NOD()) | G7: Con dos funciones BUSCARV con coincidencia aproximada
E8: =_xlfn.XLOOKUP(Rango_Valor,Rango_DATOS_A,Rango_DATOS_B) -> 2010-03-10T20:00:00 | F8: =BUSCARX(Rango_Valor;Rango_DATOS_A;Rango_DATOS_B) | G8: Con una función BUSCARX con coincidencia exacta (Excel 365)
E9: =_xlfn.XLOOKUP(Rango_Valor,Rango_DATOS_A,Rango_DATOS_B,,,2) -> 2010-03-10T20:00:00 | F9: =BUSCARX(Rango_Valor;Rango_DATOS_A;Rango_DATOS_B;;;2) | G9: Con BUSCARX con búsqueda binaria ascendente (Excel 365)
F11: Elige una fórmula de búsqueda | G11: Tiempo de Búsqueda [hh]:mm:ss,000
F12: Con una función BUSCARV con coincidencia exacta | G12: 0
D14: Celebrando el millón de visitas al blog: Pedro Wave for Excel Guys

Sheet BUSCAR
A1: Visitas | B1: Fechas
A2: =Rango_Valor -> 1 | B2: =CHOOSE(Rango_NumFormula, VLOOKUP(TablaBuscar[[#This Row],[Visitas]],Rango_DATOS,2,FALSE), IF(VLOOKUP(TablaBuscar[[#This Row],[Visitas]],Rango_DATOS_A,1,TRUE)=TablaBuscar[[#This Row],[Visitas]],VLOOKUP(TablaBuscar[[#This Row],[Visitas]],Rango_DATOS,2,TRUE),NA()), _xlfn.XLOOKUP(TablaBuscar[[#This Row],[Visitas]],Rango_DATOS_A,Rango_DATOS_B), _xlfn.XLOOKUP(TablaBuscar[[#This Row],[Visitas]],Rango_DATOS_A,Rango_DATOS_B,,,2)) -> 2010-03-10T20:00:00
A3: =A2+1 -> 2 | B3: =CHOOSE(Rango_NumFormula, VLOOKUP(TablaBuscar[[#This Row],[Visitas]],Rango_DATOS,2,FALSE), IF(VLOOKUP(TablaBuscar[[#This Row],[Visitas]],Rango_DATOS_A,1,TRUE)=TablaBuscar[[#This Row],[Visitas]],VLOOKUP(TablaBuscar[[#This Row],[Visitas]],Rango_DATOS,2,TRUE),NA()), _xlfn.XLOOKUP(TablaBuscar[[#This Row],[Visitas]],Rango_DATOS_A,Rango_DATOS_B), _xlfn.XLOOKUP(TablaBuscar[[#This Row],[Visitas]],Rango_DATOS_A,Rango_DATOS_B,,,2)) -> 2010-03-11T16:56:00
A4: =A3+1 -> 3 | B4: =CHOOSE(Rango_NumFormula, VLOOKUP(TablaBuscar[[#This Row],[Visitas]],Rango_DATOS,2,FALSE), IF(VLOOKUP(TablaBuscar[[#This Row],[Visitas]],Rango_DATOS_A,1,TRUE)=TablaBuscar[[#This Row],[Visitas]],VLOOKUP(TablaBuscar[[#This Row],[Visitas]],Rango_DATOS,2,TRUE),NA()), _xlfn.XLOOKUP(TablaBuscar[[#This Row],[Visitas]],Rango_DATOS_A,Rango_DATOS_B), _xlfn.XLOOKUP(TablaBuscar[[#This Row],[Visitas]],Rango_DATOS_A,Rango_DATOS_B,,,2)) -> 2010-03-11T23:52:58
A5: 4 | B5: =CHOOSE(Rango_NumFormula, VLOOKUP(TablaBuscar[[#This Row],[Visitas]],Rango_DATOS,2,FALSE), IF(VLOOKUP(TablaBuscar[[#This Row],[Visitas]],Rango_DATOS_A,1,TRUE)=TablaBuscar[[#This Row],[Visitas]],VLOOKUP(TablaBuscar[[#This Row],[Visitas]],Rango_DATOS,2,TRUE),NA()), _xlfn.XLOOKUP(TablaBuscar[[#This Row],[Visitas]],Rango_DATOS_A,Rango_DATOS_B), _xlfn.XLOOKUP(TablaBuscar[[#This Row],[Visitas]],Rango_DATOS_A,Rango_DATOS_B,,,2)) -> 2010-03-11T23:52:58
A6: 5 | B6: =CHOOSE(Rango_NumFormula, VLOOKUP(TablaBuscar[[#This Row],[Visitas]],Rango_DATOS,2,FALSE), IF(VLOOKUP(TablaBuscar[[#This Row],[Visitas]],Rango_DATOS_A,1,TRUE)=TablaBuscar[[#This Row],[Visitas]],VLOOKUP(TablaBuscar[[#This Row],[Visitas]],Rango_DATOS,2,TRUE),NA()), _xlfn.XLOOKUP(TablaBuscar[[#This Row],[Visitas]],Rango_DATOS_A,Rango_DATOS_B), _xlfn.XLOOKUP(TablaBuscar[[#This Row],[Visitas]],Rango_DATOS_A,Rango_DATOS_B,,,2)) -> 2010-03-11T23:52:58
A7: 6 | B7: =CHOOSE(Rango_NumFormula, VLOOKUP(TablaBuscar[[#This Row],[Visitas]],Rango_DATOS,2,FALSE), IF(VLOOKUP(TablaBuscar[[#This Row],[Visitas]],Rango_DATOS_A,1,TRUE)=TablaBuscar[[#This Row],[Visitas]],VLOOKUP(TablaBuscar[[#This Row],[Visitas]],Rango_DATOS,2,TRUE),NA()), _xlfn.XLOOKUP(TablaBuscar[[#This Row],[Visitas]],Rango_DATOS_A,Rango_DATOS_B), _xlfn.XLOOKUP(TablaBuscar[[#This Row],[Visitas]],Rango_DATOS_A,Rango_DATOS_B,,,2)) -> 2010-03-12T11:14:56
A8: 7 | B8: =CHOOSE(Rango_NumFormula, VLOOKUP(TablaBuscar[[#This Row],[Visitas]],Rango_DATOS,2,FALSE), IF(VLOOKUP(TablaBuscar[[#This Row],[Visitas]],Rango_DATOS_A,1,TRUE)=TablaBuscar[[#This Row],[Visitas]],VLOOKUP(TablaBuscar[[#This Row],[Visitas]],Rango_DATOS,2,TRUE),NA()), _xlfn.XLOOKUP(TablaBuscar[[#This Row],[Visitas]],Rango_DATOS_A,Rango_DATOS_B), _xlfn.XLOOKUP(TablaBuscar[[#This Row],[Visitas]],Rango_DATOS_A,Rango_DATOS_B,,,2)) -> 2010-03-12T18:24:18
A9: 8 | B9: =CHOOSE(Rango_NumFormula, VLOOKUP(TablaBuscar[[#This Row],[Visitas]],Rango_DATOS,2,FALSE), IF(VLOOKUP(TablaBuscar[[#This Row],[Visitas]],Rango_DATOS_A,1,TRUE)=TablaBuscar[[#This Row],[Visitas]],VLOOKUP(TablaBuscar[[#This Row],[Visitas]],Rango_DATOS,2,TRUE),NA()), _xlfn.XLOOKUP(TablaBuscar[[#This Row],[Visitas]],Rango_DATOS_A,Rango_DATOS_B), _xlfn.XLOOKUP(TablaBuscar[[#This Row],[Visitas]],Rango_DATOS_A,Rango_DATOS_B,,,2)) -> 2010-03-12T18:24:18
A10: 9 | B10: =CHOOSE(Rango_NumFormula, VLOOKUP(TablaBuscar[[#This Row],[Visitas]],Rango_DATOS,2,FALSE), IF(VLOOKUP(TablaBuscar[[#This Row],[Visitas]],Rango_DATOS_A,1,TRUE)=TablaBuscar[[#This Row],[Visitas]],VLOOKUP(TablaBuscar[[#This Row],[Visitas]],Rango_DATOS,2,TRUE),NA()), _xlfn.XLOOKUP(TablaBuscar[[#This Row],[Visitas]],Rango_DATOS_A,Rango_DATOS_B), _xlfn.XLOOKUP(TablaBuscar[[#This Row],[Visitas]],Rango_DATOS_A,Rango_DATOS_B,,,2)) -> 2010-03-12T20:57:28
A11: 10 | B11: =CHOOSE(Rango_NumFormula, VLOOKUP(TablaBuscar[[#This Row],[Visitas]],Rango_DATOS,2,FALSE), IF(VLOOKUP(TablaBuscar[[#This Row],[Visitas]],Rango_DATOS_A,1,TRUE)=TablaBuscar[[#This Row],[Visitas]],VLOOKUP(TablaBuscar[[#This Row],[Visitas]],Rango_DATOS,2,TRUE),NA()), _xlfn.XLOOKUP(TablaBuscar[[#This Row],[Visitas]],Rango_DATOS_A,Rango_DATOS_B), _xlfn.XLOOKUP(TablaBuscar[[#This Row],[Visitas]],Rango_DATOS_A,Rango_DATOS_B,,,2)) -> 2010-03-13T23:59:09

Sheet DATOS
A1: Visita | B1: Fecha
A2: 1 | B2: 2010-03-10T20:00:00
A3: 2 | B3: 2010-03-11T16:56:00
A4: 3 | B4: 2010-03-11T23:52:58
A5: 4 | B5: 2010-03-11T23:52:58
A6: 5 | B6: 2010-03-11T23:52:58
A7: 6 | B7: 2010-03-12T11:14:56
A8: 7 | B8: 2010-03-12T18:24:18
A9: 8 | B9: 2010-03-12T18:24:18
A10: 9 | B10: 2010-03-12T20:57:28
A11: 10 | B11: 2010-03-13T23:59:09

Sheet HISTORIA
A1: Año-Mes | B1: Visitas | C1: Acumulado
A2: 2010-03-01 | B2: 57 | C2: =TablaAñoMesVisitas[[#This Row],[Visitas]] -> 57
A3: 2010-04-01 | B3: 102 | C3: =C2+TablaAñoMesVisitas[[#This Row],[Visitas]] -> 159
A4: 2010-05-01 | B4: 223 | C4: =C3+TablaAñoMesVisitas[[#This Row],[Visitas]] -> 382
A5: 2010-06-01 | B5: 345 | C5: =C4+TablaAñoMesVisitas[[#This Row],[Visitas]] -> 727
A6: 2010-07-01 | B6: 761 | C6: =C5+TablaAñoMesVisitas[[#This Row],[Visitas]] -> 1488
A7: 2010-08-01 | B7: 1089 | C7: =C6+TablaAñoMesVisitas[[#This Row],[Visitas]] -> 2577
A8: 2010-09-01 | B8: 2089 | C8: =C7+TablaAñoMesVisitas[[#This Row],[Visitas]] -> 4666
A9: 2010-10-01 | B9: 1847 | C9: =C8+TablaAñoMesVisitas[[#This Row],[Visitas]] -> 6513
A10: 2010-11-01 | B10: 2143 | C10: =C9+TablaAñoMesVisitas[[#This Row],[Visitas]] -> 8656
A11: 2010-12-01 | B11: 3300 | C11: =C10+TablaAñoMesVisitas[[#This Row],[Visitas]] -> 11956
A12: 2011-01-01 | B12: 3473 | C12: =C11+TablaAñoMesVisitas[[#This Row],[Visitas]] -> 15429
A13: 2011-02-01 | B13: 3569 | C13: =C12+TablaAñoMesVisitas[[#This Row],[Visitas]] -> 18998
A14: 2011-03-01 | B14: 4202 | C14: =C13+TablaAñoMesVisitas[[#This Row],[Visitas]] -> 23200
A15: 2011-04-01 | B15: 3562 | C15: =C14+TablaAñoMesVisitas[[#This Row],[Visitas]] -> 26762
A16: 2011-05-01 | B16: 4021 | C16: =C15+TablaAñoMesVisitas[[#This Row],[Visitas]] -> 30783
A17: 2011-06-01 | B17: 3677 | C17: =C16+TablaAñoMesVisitas[[#This Row],[Visitas]] -> 34460
A18: 2011-07-01 | B18: 2713 | C18: =C17+TablaAñoMesVisitas[[#This Row],[Visitas]] -> 37173
A19: 2011-08-01 | B19: 3071 | C19: =C18+TablaAñoMesVisitas[[#This Row],[Visitas]] -> 40244
A20: 2011-09-01 | B20: 3901 | C20: =C19+TablaAñoMesVisitas[[#This Row],[Visitas]] -> 44145
A21: 2011-10-01 | B21: 5465 | C21: =C20+TablaAñoMesVisitas[[#This Row],[Visitas]] -> 49610
A22: 2011-11-01 | B22: 6056 | C22: =C21+TablaAñoMesVisitas[[#This Row],[Visitas]] -> 55666
A23: 2011-12-01 | B23: 5000 | C23: =C22+TablaAñoMesVisitas[[#This Row],[Visitas]] -> 60666
A24: 2012-01-01 | B24: 5929 | C24: =C23+TablaAñoMesVisitas[[#This Row],[Visitas]] -> 66595
A25: 2012-02-01 | B25: 6536 | C25: =C24+TablaAñoMesVisitas[[#This Row],[Visitas]] -> 73131
A26: 2012-03-01 | B26: 7059 | C26: =C25+TablaAñoMesVisitas[[#This Row],[Visitas]] -> 80190
A27: 2012-04-01 | B27: 6196 | C27: =C26+TablaAñoMesVisitas[[#This Row],[Visitas]] -> 86386
A28: 2012-05-01 | B28: 7442 | C28: =C27+TablaAñoMesVisitas[[#This Row],[Visitas]] -> 93828
A29: 2012-06-01 | B29: 7683 | C29: =C28+TablaAñoMesVisitas[[#This Row],[Visitas]] -> 101511
A30: 2012-07-01 | B30: 7324 | C30: =C29+TablaAñoMesVisitas[[#This Row],[Visitas]] -> 108835
A31: 2012-08-01 | B31: 7046 | C31: =C30+TablaAñoMesVisitas[[#This Row],[Visitas]] -> 115881
A32: 2012-09-01 | B32: 9296 | C32: =C31+TablaAñoMesVisitas[[#This Row],[Visitas]] -> 125177
A33: 2012-10-01 | B33: 12055 | C33: =C32+TablaAñoMesVisitas[[#This Row],[Visitas]] -> 137232
A34: 2012-11-01 | B34: 13916 | C34: =C33+TablaAñoMesVisitas[[#This Row],[Visitas]] -> 151148
A35: 2012-12-01 | B35: 12810 | C35: =C34+TablaAñoMesVisitas[[#This Row],[Visitas]] -> 163958
A36: 2013-01-01 | B36: 12807 | C36: =C35+TablaAñoMesVisitas[[#This Row],[Visitas]] -> 176765
A37: 2013-02-01 | B37: 12060 | C37: =C36+TablaAñoMesVisitas[[#This Row],[Visitas]] -> 188825
A38: 2013-03-01 | B38: 9759 | C38: =C37+TablaAñoMesVisitas[[#This Row],[Visitas]] -> 198584
A39: 2013-04-01 | B39: 11170 | C39: =C38+TablaAñoMesVisitas[[#This Row],[Visitas]] -> 209754
A40: 2013-05-01 | B40: 8392 | C40: =C39+TablaAñoMesVisitas[[#This Row],[Visitas]] -> 218146
A41: 2013-06-01 | B41: 7225 | C41: =C40+TablaAñoMesVisitas[[#This Row],[Visitas]] -> 225371
A42: 2013-07-01 | B42: 6029 | C42: =C41+TablaAñoMesVisitas[[#This Row],[Visitas]] -> 231400
A43: 2013-08-01 | B43: 6339 | C43: =C42+TablaAñoMesVisitas[[#This Row],[Visitas]] -> 237739
A44: 2013-09-01 | B44: 7454 | C44: =C43+TablaAñoMesVisitas[[#This Row],[Visitas]] -> 245193
A45: 2013-10-01 | B45: 6489 | C45: =C44+TablaAñoMesVisitas[[#This Row],[Visitas]] -> 251682
A46: 2013-11-01 | B46: 6748 | C46: =C45+TablaAñoMesVisitas[[#This Row],[Visitas]] -> 258430
A47: 2013-12-01 | B47: 5609 | C47: =C46+TablaAñoMesVisitas[[#This Row],[Visitas]] -> 264039
A48: 2014-01-01 | B48: 5924 | C48: =C47+TablaAñoMesVisitas[[#This Row],[Visitas]] -> 269963
A49: 2014-02-01 | B49: 5829 | C49: =C48+TablaAñoMesVisitas[[#This Row],[Visitas]] -> 275792
A50: 2014-03-01 | B50: 7731 | C50: =C49+TablaAñoMesVisitas[[#This Row],[Visitas]] -> 283523
A51: 2014-04-01 | B51: 6984 | C51: =C50+TablaAñoMesVisitas[[#This Row],[Visitas]] -> 290507
A52: 2014-05-01 | B52: 8056 | C52: =C51+TablaAñoMesVisitas[[#This Row],[Visitas]] -> 298563
A53: 2014-06-01 | B53: 9555 | C53: =C52+TablaAñoMesVisitas[[#This Row],[Visitas]] -> 308118
A54: 2014-07-01 | B54: 8894 | C54: =C53+TablaAñoMesVisitas[[#This Row],[Visitas]] -> 317012
A55: 2014-08-01 | B55: 11450 | C55: =C54+TablaAñoMesVisitas[[#This Row],[Visitas]] -> 328462
A56: 2014-09-01 | B56: 13640 | C56: =C55+TablaAñoMesVisitas[[#This Row],[Visitas]] -> 342102
A57: 2014-10-01 | B57: 11820 | C57: =C56+TablaAñoMesVisitas[[#This Row],[Visitas]] -> 353922
A58: 2014-11-01 | B58: 12973 | C58: =C57+TablaAñoMesVisitas[[#This Row],[Visitas]] -> 366895
A59: 2014-12-01 | B59: 18230 | C59: =C58+TablaAñoMesVisitas[[#This Row],[Visitas]] -> 385125
A60: 2015-01-01 | B60: 17712 | C60: =C59+TablaAñoMesVisitas[[#This Row],[Visitas]] -> 402837
A61: 2015-02-01 | B61: 10802 | C61: =C60+TablaAñoMesVisitas[[#This Row],[Visitas]] -> 413639
A62: 2015-03-01 | B62: 9567 | C62: =C61+TablaAñoMesVisitas[[#This Row],[Visitas]] -> 423206
A63: 2015-04-01 | B63: 10147 | C63: =C62+TablaAñoMesVisitas[[#This Row],[Visitas]] -> 433353
A64: 2015-05-01 | B64: 8773 | C64: =C63+TablaAñoMesVisitas[[#This Row],[Visitas]] -> 442126
A65: 2015-06-01 | B65: 7875 | C65: =C64+TablaAñoMesVisitas[[#This Row],[Visitas]] -> 450001
A66: 2015-07-01 | B66: 7358 | C66: =C65+TablaAñoMesVisitas[[#This Row],[Visitas]] -> 457359
A67: 2015-08-01 | B67: 8571 | C67: =C66+TablaAñoMesVisitas[[#This Row],[Visitas]] -> 465930
A68: 2015-09-01 | B68: 7798 | C68: =C67+TablaAñoMesVisitas[[#This Row],[Visitas]] -> 473728
A69: 2015-10-01 | B69: 9738 | C69: =C68+TablaAñoMesVisitas[[#This Row],[Visitas]] -> 483466
A70: 2015-11-01 | B70: 9063 | C70: =C69+TablaAñoMesVisitas[[#This Row],[Visitas]] -> 492529
A71: 2015-12-01 | B71: 9373 | C71: =C70+TablaAñoMesVisitas[[#This Row],[Visitas]] -> 501902
A72: 2016-01-01 | B72: 13072 | C72: =C71+TablaAñoMesVisitas[[#This Row],[Visitas]] -> 514974
A73: 2016-02-01 | B73: 15229 | C73: =C72+TablaAñoMesVisitas[[#This Row],[Visitas]] -> 530203
A74: 2016-03-01 | B74: 10927 | C74: =C73+TablaAñoMesVisitas[[#This Row],[Visitas]] -> 541130
A75: 2016-04-01 | B75: 10054 | C75: =C74+TablaAñoMesVisitas[[#This Row],[Visitas]] -> 551184
A76: 2016-05-01 | B76: 10789 | C76: =C75+TablaAñoMesVisitas[[#This Row],[Visitas]] -> 561973
A77: 2016-06-01 | B77: 19453 | C77: =C76+TablaAñoMesVisitas[[#This Row],[Visitas]] -> 581426
A78: 2016-07-01 | B78: 21189 | C78: =C77+TablaAñoMesVisitas[[#This Row],[Visitas]] -> 602615
A79: 2016-08-01 | B79: 18915 | C79: =C78+TablaAñoMesVisitas[[#This Row],[Visitas]] -> 621530
A80: 2016-09-01 | B80: 21498 | C80: =C79+TablaAñoMesVisitas[[#This Row],[Visitas]] -> 643028
A81: 2016-10-01 | B81: 20170 | C81: =C80+TablaAñoMesVisitas[[#This Row],[Visitas]] -> 663198
A82: 2016-11-01 | B82: 18251 | C82: =C81+TablaAñoMesVisitas[[#This Row],[Visitas]] -> 681449
A83: 2016-12-01 | B83: 18243 | C83: =C82+TablaAñoMesVisitas[[#This Row],[Visitas]] -> 699692
A84: 2017-01-01 | B84: 17701 | C84: =C83+TablaAñoMesVisitas[[#This Row],[Visitas]] -> 717393
A85: 2017-02-01 | B85: 13477 | C85: =C84+TablaAñoMesVisitas[[#This Row],[Visitas]] -> 730870
A86: 2017-03-01 | B86: 13835 | C86: =C85+TablaAñoMesVisitas[[#This Row],[Visitas]] -> 744705
A87: 2017-04-01 | B87: 13327 | C87: =C86+TablaAñoMesVisitas[[#This Row],[Visitas]] -> 758032
A88: 2017-05-01 | B88: 11762 | C88: =C87+TablaAñoMesVisitas[[#This Row],[Visitas]] -> 769794
A89: 2017-06-01 | B89: 5599 | C89: =C88+TablaAñoMesVisitas[[#This Row],[Visitas]] -> 775393
A90: 2017-07-01 | B90: 4932 | C90: =C89+TablaAñoMesVisitas[[#This Row],[Visitas]] -> 780325
A91: 2017-08-01 | B91: 5527 | C91: =C90+TablaAñoMesVisitas[[#This Row],[Visitas]] -> 785852
A92: 2017-09-01 | B92: 5164 | C92: =C91+TablaAñoMesVisitas[[#This Row],[Visitas]] -> 791016
A93: 2017-10-01 | B93: 4819 | C93: =C92+TablaAñoMesVisitas[[#This Row],[Visitas]] -> 795835
A94: 2017-11-01 | B94: 4504 | C94: =C93+TablaAñoMesVisitas[[#This Row],[Visitas]] -> 800339
A95: 2017-12-01 | B95: 4848 | C95: =C94+TablaAñoMesVisitas[[#This Row],[Visitas]] -> 805187
A96: 2018-01-01 | B96: 5024 | C96: =C95+TablaAñoMesVisitas[[#This Row],[Visitas]] -> 810211
A97: 2018-02-01 | B97: 7065 | C97: =C96+TablaAñoMesVisitas[[#This Row],[Visitas]] -> 817276
A98: 2018-03-01 | B98: 4871 | C98: =C97+TablaAñoMesVisitas[[#This Row],[Visitas]] -> 822147
A99: 2018-04-01 | B99: 4953 | C99: =C98+TablaAñoMesVisitas[[#This Row],[Visitas]] -> 827100
A100: 2018-05-01 | B100: 5059 | C100: =C99+TablaAñoMesVisitas[[#This Row],[Visitas]] -> 832159
A101: 2018-06-01 | B101: 5261 | C101: =C100+TablaAñoMesVisitas[[#This Row],[Visitas]] -> 837420
A102: 2018-07-01 | B102: 5458 | C102: =C101+TablaAñoMesVisitas[[#This Row],[Visitas]] -> 842878
A103: 2018-08-01 | B103: 5453 | C103: =C102+TablaAñoMesVisitas[[#This Row],[Visitas]] -> 848331
A104: 2018-09-01 | B104: 5649 | C104: =C103+TablaAñoMesVisitas[[#This Row],[Visitas]] -> 853980
A105: 2018-10-01 | B105: 5220 | C105: =C104+TablaAñoMesVisitas[[#This Row],[Visitas]] -> 859200
A106: 2018-11-01 | B106: 5235 | C106: =C105+TablaAñoMesVisitas[[#This Row],[Visitas]] -> 864435
A107: 2018-12-01 | B107: 4500 | C107: =C106+TablaAñoMesVisitas[[#This Row],[Visitas]] -> 868935
A108: 2019-01-01 | B108: 6453 | C108: =C107+TablaAñoMesVisitas[[#This Row],[Visitas]] -> 875388
A109: 2019-02-01 | B109: 15447 | C109: =C108+TablaAñoMesVisitas[[#This Row],[Visitas]] -> 890835
A110: 2019-03-01 | B110: 18764 | C110: =C109+TablaAñoMesVisitas[[#This Row],[Visitas]] -> 909599
A111: 2019-04-01 | B111: 7118 | C111: =C110+TablaAñoMesVisitas[[#This Row],[Visitas]] -> 916717
A112: 2019-05-01 | B112: 4367 | C112: =C111+TablaAñoMesVisitas[[#This Row],[Visitas]] -> 921084
A113: 2019-06-01 | B113: 4092 | C113: =C112+TablaAñoMesVisitas[[#This Row],[Visitas]] -> 925176
A114: 2019-07-01 | B114: 3378 | C114: =C113+TablaAñoMesVisitas[[#This Row],[Visitas]] -> 928554
A115: 2019-08-01 | B115: 3251 | C115: =C114+TablaAñoMesVisitas[[#This Row],[Visitas]] -> 931805
A116: 2019-09-01 | B116: 3455 | C116: =C115+TablaAñoMesVisitas[[#This Row],[Visitas]] -> 935260
A117: 2019-10-01 | B117: 3376 | C117: =C116+TablaAñoMesVisitas[[#This Row],[Visitas]] -> 938636
A118: 2019-11-01 | B118: 3283 | C118: =C117+TablaAñoMesVisitas[[#This Row],[Visitas]] -> 941919
A119: 2019-12-01 | B119: 3125 | C119: =C118+TablaAñoMesVisitas[[#This Row],[Visitas]] -> 945044
A120: 2020-01-01 | B120: 3325 | C120: =C119+TablaAñoMesVisitas[[#This Row],[Visitas]] -> 948369
A121: 2020-02-01 | B121: 2799 | C121: =C120+TablaAñoMesVisitas[[#This Row],[Visitas]] -> 951168
A122: 2020-03-01 | B122: 3084 | C122: =C121+TablaAñoMesVisitas[[#This Row],[Visitas]] -> 954252
A123: 2020-04-01 | B123: 3035 | C123: =C122+TablaAñoMesVisitas[[#This Row],[Visitas]] -> 957287
A124: 2020-05-01 | B124: 3309 | C124: =C123+TablaAñoMesVisitas[[#This Row],[Visitas]] -> 960596
A125: 2020-06-01 | B125: 3509 | C125: =C124+TablaAñoMesVisitas[[#This Row],[Visitas]] -> 964105
A126: 2020-07-01 | B126: 3191 | C126: =C125+TablaAñoMesVisitas[[#This Row],[Visitas]] -> 967296
A127: 2020-08-01 | B127: 2022 | C127: =C126+TablaAñoMesVisitas[[#This Row],[Visitas]] -> 969318
A128: 2020-09-01 | B128: 2049 | C128: =C127+TablaAñoMesVisitas[[#This Row],[Visitas]] -> 971367
A129: 2020-10-01 | B129: 2379 | C129: =C128+TablaAñoMesVisitas[[#This Row],[Visitas]] -> 973746
A130: 2020-11-01 | B130: 4498 | C130: =C129+TablaAñoMesVisitas[[#This Row],[Visitas]] -> 978244
A131: 2020-12-01 | B131: 7983 | C131: =C130+TablaAñoMesVisitas[[#This Row],[Visitas]] -> 986227
A132: 2021-01-01 | B132: 3575 | C132: =C131+TablaAñoMesVisitas[[#This Row],[Visitas]] -> 989802
A133: 2021-02-01 | B133: 3748 | C133: =C132+TablaAñoMesVisitas[[#This Row],[Visitas]] -> 993550
A134: 2021-03-01 | B134: 4739 | C134: =C133+TablaAñoMesVisitas[[#This Row],[Visitas]] -> 998289
A135: 2021-04-01 | B135: 1711 | C135: =C134+TablaAñoMesVisitas[[#This Row],[Visitas]] -> 1000000
